Cogmind - Beta 17.1 @@@ ROGUE MODE // 2026.08.30 @ 03:44:48 Player: TheSkyeDoctor Result: Destroyed by S-27 Virus with Autogun Performance ------------- Evolutions (6) 3000 Regions Visited (17) 3400 Robots Destroyed (78) 390 Value Destroyed (2894) 2894 Prototype IDs (30) 600 Alien Tech Used (0) 0 Bonus (2171) 2171 TOTAL SCORE: 12455 Bonus ------- High Alert Combat Kills 229 Follower Combat Kills 122 Aligned with FarCom 300 Met Warlord at Base 500 MAIN.C Attacked Warlord 500 Warlord Defense Kills 520 Cogmind --------- Core Integrity 0/1150 Matter 275/300 Energy 91/100 System Corruption 0% Temperature Cool (0) Movement Core (50) Location -4/Warlord Parts ------- > --- POWER (2) -------- (None) > --- PROPULSION (6) --- (None) > --- UTILITY (7) ------ (None) > --- WEAPON (4) ------- (None) > --- INVENTORY (5) ---- Improved Energy Well (400) Matter Compressor (250) Advanced Force Field Vortex Shotgun (50) Vortex Shotgun (50) Peak State ------------ > --- POWER ------------ Angular Momentum Engine > --- PROPULSION ------- Flying Fortress v7 > --- UTILITY ---------- Large Storage Unit Advanced Weight Redist. System Improved Terrain Scan Processor Improved Targeting Computer Reaction Control System Hacking Drone Bay > --- WEAPON ----------- XL Autogun Array > --- INVENTORY -------- Nuclear Pulse Thruster Biomechanical Wings Improved Cooling System High-capacity Battery Matter Compressor Improved Terrain Scanner Seismic Detector 0b10 Decoder Chip [Scout] 0b10 Decoder Chip [Scout] Improved Target Analyzer Cloaking Device Improved Medium Armor Plating Force Field CR-A16's Pointy Stick GAL Module [Rating: 100] Favorites ----------- Power Ion Engine Engine Ion Engine Power Core Micro Fission Core Reactor Light Antimatter Reactor Propulsion Aluminum Leg Treads Light Treads Leg Aluminum Leg Wheel Centrium Wheel Hover Unit Backup Propulsion III Flight Unit Flying Fortress v7 Utility Seismic Detector Device Seismic Detector Storage Large Storage Unit Processor Improved Targeting Computer Hackware System Shield Protection Improved Medium Armor Plating Weapon XL Autogun Subcomponent Energy Gun Medium Laser Energy Cannon Vortex Driver Ballistic Gun XL Autogun Subcomponent Ballistic Cannon Light Cannon Launcher Grenade Launcher Impact Weapon Makeshift Hammer Slashing Weapon Dual-blade Saw Piercing Weapon CR-A16's Pointy Stick Special Melee Weapon Improved Datajack Build | -11 -10 -10 -10 -9 -8 -7 -6 -6 -6 -6 -5 -5 -5 -4 -4 -4 -4 ------- Run | Yrd Mat Min Exi Min Mat Fac Fac Low Low Zio Pro Fac Ext Fac Upp Upp War Slots Evolved 12 | . . . . . 4 2 2 . . . . 2 . 2 . . . Power 1 | . . . . . . . . . . . . 1 . . . . . Propulsion 4 | . . . . . 2 . . . . . . . . 2 . . . Utility 5 | . . . . . . 2 2 . . . . 1 . . . . . Weapon 2 | . . . . . 2 . . . . . . . . . . . . Parts Attached 80 | 10 . 4 1 . 2 4 7 . 1 1 4 6 14 9 2 7 8 Power 13 | 1 . 1 . . . 1 2 . 1 . . 2 4 . . 1 . Engine 6 | 1 . 1 . . . 1 1 . 1 . . 1 . . . . . Core 6 | . . . . . . . . . . . . 1 4 . . 1 . Reactor 1 | . . . . . . . 1 . . . . . . . . . . Propulsion 16 | 3 . 1 . . 1 . . . . . . . 4 3 1 1 2 Treads 1 | 1 . . . . . . . . . . . . . . . . . Leg 5 | 2 . 1 . . . . . . . . . . 2 . . . . Wheel 3 | . . . . . . . . . . . . . . 3 . . . Hover . | . . . . . . . . . . . . . . . . . . Flight 7 | . . . . . 1 . . . . . . . 2 . 1 1 2 Utility 29 | 4 . . 1 . . 2 5 . . 1 . 3 4 2 1 5 1 Device 14 | 3 . . . . . . 3 . . 1 . 1 2 2 . 2 . Storage 3 | 1 . . 1 . . . . . . . . 1 . . . . . Processor 8 | . . . . . . 2 1 . . . . 1 1 . 1 1 1 Hackware 2 | . . . . . . . 1 . . . . . . . . 1 . Protection 2 | . . . . . . . . . . . . . 1 . . 1 . Artifact . | . . . . . . . . . . . . . . . . . . Weapon 22 | 2 . 2 . . 1 1 . . . . 4 1 2 4 . . 5 Energy Gun 4 | 1 . . . . . . . . . . . . . . . . 3 Energy Cannon 1 | . . . . . . . . . . . . . . . . . 1 Ballistic Gun 7 | 1 . . . . 1 . . . . . 4 1 . . . . . Ballistic Cannon 2 | . . 1 . . . 1 . . . . . . . . . . . Launcher 1 | . . 1 . . . . . . . . . . . . . . . Special Weapon . | . . . . . . . . . . . . . . . . . . Impact Weapon 1 | . . . . . . . . . . . . . . . . . 1 Slashing Weapon 4 | . . . . . . . . . . . . . . 4 . . . Piercing Weapon 1 | . . . . . . . . . . . . . 1 . . . . Special Melee Weapon 1 | . . . . . . . . . . . . . 1 . . . . Unidentified Prototypes 7 | . . . . . . 1 . . . 1 1 1 1 . . . 2 Parts Lost 47 | . . 3 . . . . . . . . . 1 23 11 1 3 5 Power 9 | . . 1 . . . . . . . . . 1 4 . . 1 2 Propulsion 12 | . . 1 . . . . . . . . . . 4 3 1 1 2 Utility 14 | . . . . . . . . . . . . . 8 4 . 1 1 Weapon 12 | . . 1 . . . . . . . . . . 7 4 . . . Highest Loss Streak 11 | . . 1 . . . . . . . . . 1 9 11 1 3 5 To Critical Strikes 1 | . . . . . . . . . . . . . . 1 . . . Average Backups 8 | 1 3 7 5 6 8 12 14 15 15 14 14 13 11 5 2 3 4 Power . | . 1 . . . . . 1 1 . . . . . . . . . Propulsion 1 | . . . . 1 1 2 3 2 2 2 2 2 1 1 . . . Utility 5 | . 1 4 4 4 4 4 5 7 10 11 11 9 6 2 2 3 3 Weapon 1 | . 1 2 . 1 2 4 4 3 2 1 1 1 1 . . . 1 Tool/Special . | . . . . . . . . . . . . . . . . . . Unused Backups 22 | . . 1 2 . . . 6 3 1 1 1 2 . 4 . . 1 Power . | . . . . . . . . . . . . . . . . . . Propulsion 7 | . . . . . . . 5 1 . . . . . 1 . . . Utility 9 | . . 1 1 . . . 1 . 1 . 1 2 . 1 . . 1 Weapon 5 | . . . 1 . . . . 2 . 1 . . . 1 . . . Tool/Special 1 | . . . . . . . . . . . . . . 1 . . . Average Slot Usage (%) 69 | . 100 96 85 85 45 51 59 60 60 60 70 79 69 49 23 30 46 Engine 6 | . 14 14 14 14 9 7 1 . 3 6 6 8 . . . . 4 Leg 6 | . 28 24 14 14 . . . . . . . . 1 . . . . Flight 3 | . . . . . 8 7 6 6 6 6 6 5 4 . 8 7 4 Device 13 | . 14 14 14 14 9 7 13 13 13 19 20 17 13 17 5 7 4 Storage 7 | . 14 14 14 14 9 7 6 6 6 6 6 5 4 3 . . . Processor 9 | . . . . . . 13 13 13 13 13 13 17 18 5 9 12 20 Hackware 1 | . . . . . . . 5 6 6 . . . . . . 2 4 Energy Gun 1 | . 14 10 . . . . . . . . . . . . . . . Ballistic Gun 6 | . 14 7 . . 8 6 6 6 6 6 16 22 12 . . . . Ballistic Cannon 3 | . . 6 14 14 . . . . . . . . . . . . . Launcher 2 | . . 3 14 14 . . . . . . . . . . . . . Peak Build Rating 100 | 9 8 8 13 13 72 82 95 95 95 100 100 97 90 82 28 50 48 Average Rating 47 | 4 7 7 9 13 70 78 91 94 93 99 92 94 59 56 26 30 33 On Entrance 46 | . 7 8 7 13 13 72 82 95 95 93 100 88 90 27 9 22 23 Avg Prop Armor Cover (%) 7 | . . . . . . . . . . . . . 3 11 . . 6 Naked Turns 13 | . . . . . . . . . . . . . . . . . 13 Heaviest Build 58 | 14 14 17 32 32 41 46 50 48 49 50 50 58 57 45 1 30 20 Greatest Support 59 | 20 20 20 10 10 50 50 59 59 59 59 59 59 59 48 21 19 8 Greatest Overweight (x) 8 | . . 1 3 3 . . . . . . . . 8 2 . 3 4 Average Overweight (x) . | . . . 1 3 . . . . . . . . 1 . . . . Largest Inventory Capacity 15 | 8 8 8 15 15 15 15 15 15 15 15 15 15 15 15 5 5 5 Average Capacity 11 | 7 8 8 11 15 15 15 15 15 15 15 15 15 14 11 5 5 5 Most Carried 15 | 2 8 8 12 12 13 15 15 15 15 15 15 15 15 11 3 5 5 Average Carried 9 | 1 3 7 8 12 8 12 14 14 14 15 15 14 12 6 2 4 4 Final Capacity 15 | 8 8 8 15 15 15 15 15 15 15 15 15 15 5 5 5 5 5 Final Carried 15 | 2 8 7 12 12 10 14 15 15 15 15 15 15 5 5 2 5 5 Class Distribution -------------------- 56% | Mutant 22% | Skirmisher 16% | Gunner 3% | Scavenger-Mutant Dominant Class ---------------- Mutant | -10/Materials Mutant | -10/Mines Mutant | -10/Exiles Mutant | -9/Mines Skirmisher | -8/Materials Gunner | -7/Factory Skirmisher | -6/Factory Gunner | -6/Lower Caves Gunner | -6/Lower Caves Gunner | -6/Zion Gunner | -5/Proximity Caves Skirmisher | -5/Factory Skirmisher | -5/Extension Mutant | -4/Factory Mutant | -4/Upper Caves Mutant | -4/Upper Caves Mutant | -4/Warlord Resources | -11 -10 -10 -10 -9 -8 -7 -6 -6 -6 -6 -5 -5 -5 -4 -4 -4 -4 ----------- Run | Yrd Mat Min Exi Min Mat Fac Fac Low Low Zio Pro Fac Ext Fac Upp Upp War Matter Collected 3162 | 321 5 345 . 35 60 65 885 35 95 10 244 228 605 26 63 65 75 Remotely 82 | 82 . . . . . . . . . . . . . . . . . Salvage Created 3186 | 182 49 305 . . 60 46 1143 45 . . 275 351 514 17 . . 199 Parts 187 | 15 9 25 . . 3 4 69 3 . . 15 14 24 2 . . 4 Haulers Intercepted . | . . . . . . . . . . . . . . . . . . Recyclers Shooed 2 | 1 . 1 . . . . . . . . . . . . . . . Parts Field Recycled . | . . . . . . . . . . . . . . . . . . Retrieved Matter . | . . . . . . . . . . . . . . . . . . Parts Self-Destructed 20 | . . . . . . . . 2 . . 17 . . . 1 . . Prevented 2 | . . . . . . . . 2 . . . . . . . . . Parts Restored . | . . . . . . . . . . . . . . . . . . Kills | -11 -10 -10 -10 -9 -8 -7 -6 -6 -6 -6 -5 -5 -5 -4 -4 -4 -4 ------- Run | Yrd Mat Min Exi Min Mat Fac Fac Low Low Zio Pro Fac Ext Fac Upp Upp War Combat Hostiles Destroyed 56 | . 3 12 . . . 1 22 1 . . 5 3 6 . . . 3 Guns 48 | . 3 7 . . . 1 22 1 . . 5 3 6 . . . . Cannons 1 | . . 1 . . . . . . . . . . . . . . . AOE 4 | . . 4 . . . . . . . . . . . . . . . Classes Destroyed 12 | 3 1 1 . . 1 1 3 . . . . . 1 . . . 1 Worker 5 | 2 . . . . . . 2 . . . . . . 1 . . . Builder 3 | . . . . . . . 1 . . . . 1 1 . . . . Tunneler 6 | 5 . . . . . . 1 . . . . . . . . . . Recycler 2 | 1 . . . . . . . . . . . 1 . . . . . Operator 1 | . . . . . . . . . . . . . 1 . . . . Watcher 5 | . . . . . 2 . . . . . . 1 2 . . . . Swarmer 17 | . 3 6 . . . . 8 . . . . . . . . . . Grunt 21 | . . 6 . . . . 9 . . . 3 1 . . . . 2 Sentry 6 | . . . . . . . 2 . . . . 1 3 . . . . Hunter 3 | . . . . . . . 1 . . . . 1 1 . . . . Programmer 8 | . . . . . . 1 2 1 . . 2 . 2 . . . . Executioner 1 | . . . . . . . . . . . . . . . . . 1 Best Kill Streak 9 | 4 3 4 . . 1 1 9 1 . . 4 2 2 1 . . 3 Combat Bots Only 6 | . 3 4 . . . 1 6 1 . . 4 2 2 . . . 3 Max Kills in Single Turn 3 | 1 1 2 . . 1 1 3 1 . . 1 1 1 1 . . 1 Gunslinging 1 | . . 1 . . . . . . . . . . . . . . . Exploded 2 | . . 2 . . . . . . . . . . . . . . . Melee . | . . . . . . . . . . . . . . . . . . Uniques/NPCs Destroyed . | . . . . . . . . . . . . . . . . . . Combat | -11 -10 -10 -10 -9 -8 -7 -6 -6 -6 -6 -5 -5 -5 -4 -4 -4 -4 -------- Run | Yrd Mat Min Exi Min Mat Fac Fac Low Low Zio Pro Fac Ext Fac Upp Upp War Hostile Shots Fired 684 | . 11 53 . . 2 6 89 13 4 . 35 41 209 91 32 26 72 Missed 260 | . 5 11 . . 1 3 47 8 4 . 16 12 64 26 17 18 28 Hits 424 | . 6 42 . . 1 3 42 5 . . 19 29 145 65 15 8 44 Melee 12 | . . . . . . . . . . . . . 4 . . 1 7 Projectile 412 | . 6 42 . . 1 3 42 5 . . 19 29 141 65 15 7 37 Critical Strikes 17 | . . 2 . . . . . . . . . 2 7 3 3 . . Damage Taken 7961 | . 48 607 . . 16 46 640 88 . . 358 581 2932 1531 313 150 651 Core 2428 | . 7 173 . . . . 32 14 . . 36 46 953 376 148 84 559 Absorbed by Shields 322 | . . . . . . . . . . . . 83 239 . . . . Regen/Repaired (Parts) 9 | . . . . . . . . . . . . . . . . . 9 Core Remaining (%) 69 | 100 . . . 28 100 100 . . . . 90 . . . . . . Volleys Fired 192 | 21 5 27 . . 4 1 37 6 . . 16 20 55 . . . . Largest 4 | 2 2 2 . . 1 1 1 1 . . 4 4 4 . . . . Hottest 93 | 70 70 80 . . 60 60 60 60 . . 80 93 80 . . . . Shots Fired 390 | 41 10 51 . . 4 1 37 6 . . 52 80 108 . . . . Gun 376 | 41 10 37 . . 4 1 37 6 . . 52 80 108 . . . . Cannon 9 | . . 9 . . . . . . . . . . . . . . . Launcher 5 | . . 5 . . . . . . . . . . . . . . . Special . | . . . . . . . . . . . . . . . . . . Kinetic 338 | 21 5 24 . . 4 1 37 6 . . 52 80 108 . . . . Thermal 47 | 20 5 22 . . . . . . . . . . . . . . . Explosive 5 | . . 5 . . . . . . . . . . . . . . . Electromagnetic . | . . . . . . . . . . . . . . . . . . Robot Hit Streak 22 | 7 3 16 . . 2 3 12 8 . . 6 10 22 . . . . Robot Miss Streak 6 | 2 4 4 . . 5 1 6 4 . . 2 6 5 . . . . Penetration Max 1 | . . . . . . . . . . . . 1 . . . . . Secondary Targets 7 | . 2 1 . . . . . . . . 1 1 2 . . . . Max Gunslinging Chain 1 | . 1 1 . . . . . . . . 1 1 1 . . . . Shots Hit Robots 265 | 27 4 33 . . 4 1 32 6 . . 27 48 75 5 . . 3 Core Hits 142 | 11 4 19 . . 3 1 45 3 . . 14 15 25 2 . . . Critical Kills 1 | . . . . . . . . . . . . . 1 . . . . Critical Parts Destroyed 3 | . . . . . . . . . . . . . 2 . . . 1 Critical Strikes 12 | 3 . 1 . . . . . . . . . . 5 2 . . 1 Burn 4 | 3 . 1 . . . . . . . . . . . . . . . Destroy 3 | . . . . . . . . . . . . . 3 . . . . Smash 1 | . . . . . . . . . . . . . . . . . 1 Sever 2 | . . . . . . . . . . . . . . 2 . . . Impale 2 | . . . . . . . . . . . . . 2 . . . . Melee Attacks 21 | . . . . . . . . . . . . . 13 5 . . 3 Impact 3 | . . . . . . . . . . . . . . . . . 3 Slashing 5 | . . . . . . . . . . . . . . 5 . . . Piercing 6 | . . . . . . . . . . . . . 6 . . . . Sneak Attacks 9 | . . . . . . . . . . . . . 7 2 . . . Combat Hostiles . | . . . . . . . . . . . . . . . . . . Follow-up Attacks . | . . . . . . . . . . . . . . . . . . Damage Inflicted 7174 | 275 38 608 . . 101 33 1966 419 . . 799 985 1629 154 . . 167 Guns 6147 | 275 38 301 . . 101 33 1885 419 . . 799 985 1311 . . . . Cannons 52 | . . 52 . . . . . . . . . . . . . . . Explosions 495 | . . 255 . . . . 81 . . . . . 159 . . . . Melee 476 | . . . . . . . . . . . . . 159 150 . . 167 Ramming 4 | . . . . . . . . . . . . . . 4 . . . Kinetic 5784 | 99 13 139 . . 101 33 1885 419 . . 799 985 1311 . . . . Thermal 574 | 176 25 214 . . . . . . . . . . 159 . . . . Explosive 255 | . . 255 . . . . . . . . . . . . . . . Electromagnetic 81 | . . . . . . . 81 . . . . . . . . . . Impact 167 | . . . . . . . . . . . . . . . . . 167 Slashing 150 | . . . . . . . . . . . . . . 150 . . . Piercing 159 | . . . . . . . . . . . . . 159 . . . . Highest Corruption 9 | . . . . . . . . . . . 1 1 9 5 7 7 7 Average Corruption 3 | . . . . . . . . . . . 1 1 3 3 5 7 7 Corruption Purged . | . . . . . . . . . . . . . . . . . . Corruption Blocked . | . . . . . . . . . . . . . . . . . . Effects 26 | . . . . . . . . . . . . . 16 2 2 6 . Message Errors 6 | . . . . . . . . . . . . . 4 2 . . . Matter Fused 10 | . . . . . . . . . . . . . 5 . 2 3 . Heat Flow Errors 3 | . . . . . . . . . . . . . 1 . . 2 . Energy Discharges 1 | . . . . . . . . . . . . . 1 . . . . Data Loss (minor) 6 | . . . . . . . . . . . . . 5 . . 1 . Overload Shots . | . . . . . . . . . . . . . . . . . . Overflow Damage 129 | . . 11 . . . . . . . . . . 16 . . . 102 Projectiles 11 | . . 11 . . . . . . . . . . . . . . . Explosions 16 | . . . . . . . . . . . . . 16 . . . . Melee 102 | . . . . . . . . . . . . . . . . . 102 Knockbacks 1 | . . 1 . . . . . . . . . . . . . . . Impact . | . . . . . . . . . . . . . . . . . . Kinetic 1 | . . 1 . . . . . . . . . . . . . . . Secondary . | . . . . . . . . . . . . . . . . . . Self-Inflicted Damage 161 | . . 64 . . . . 95 . . . . . . 2 . . . Shots 4 | . . 3 . . . . 1 . . . . . . . . . . Rammed 1 | . . . . . . . . . . . . . . 1 . . . Targets Rammed 1 | . . . . . . . . . . . . . . 1 . . . Kicked . | . . . . . . . . . . . . . . . . . . Crushed . | . . . . . . . . . . . . . . . . . . Highest Temperature 464 | 70 52 238 . . 83 39 397 114 . . 229 464 267 . 11 233 . Average Temperature 101 | 24 25 86 . . 47 28 155 60 . . 108 177 48 . 9 99 . Received Heat Transfer 1476 | . . 306 . . . 9 81 36 . . 120 72 581 90 121 18 42 Effects 4 | . . . . . . . . . . . . 4 . . . . . Shutdowns 1 | . . . . . . . . . . . . 1 . . . . . Matter Decay 1 | . . . . . . . . . . . . 1 . . . . . Damage (major) 2 | . . . . . . . . . . . . 2 . . . . . Siege Activations . | . . . . . . . . . . . . . . . . . . Martial Activations . | . . . . . . . . . . . . . . . . . . Shielding Activations . | . . . . . . . . . . . . . . . . . . Robots Disrupted . | . . . . . . . . . . . . . . . . . . Combat Hostiles . | . . . . . . . . . . . . . . . . . . Robots Corrupted 3 | . . . . . . . . . . . . . . . . . 3 Combat Hostiles 3 | . . . . . . . . . . . . . . . . . 3 Parts Fried 4 | . . . . . . . . . . . . . . . . . 4 Impact Corruptions 3 | . . . . . . . . . . . . . . . . . 3 Robots Melted . | . . . . . . . . . . . . . . . . . . Combat Hostiles . | . . . . . . . . . . . . . . . . . . Parts Melted 7 | 4 . 3 . . . . . . . . . . . . . . . Heat Transferred 1617 | 740 74 703 . . . . . . . . . . 100 . . . . Parts Sabotaged 12 | . . . . . . . . . . . . . . . . . 12 Parts Stolen . | . . . . . . . . . . . . . . . . . . Parts Stripped . | . . . . . . . . . . . . . . . . . . Power Chain Reactions . | . . . . . . . . . . . . . . . . . . Alert | -11 -10 -10 -10 -9 -8 -7 -6 -6 -6 -6 -5 -5 -5 -4 -4 -4 -4 ------- Run | Yrd Mat Min Exi Min Mat Fac Fac Low Low Zio Pro Fac Ext Fac Upp Upp War Maximum Alert Level 3 | . . . . . . . 3 . . . . . . . . . . Low Security (%) 88 | 100 100 100 . 100 100 100 21 . . . . 100 100 100 . . . Level 1 1 | . . . . . . . 11 . . . . . . . . . . Level 2 3 | . . . . . . . 23 . . . . . . . . . . Level 3 6 | . . . . . . . 44 . . . . . . . . . . Level 4 . | . . . . . . . . . . . . . . . . . . Level 5 . | . . . . . . . . . . . . . . . . . . High Security . | . . . . . . . . . . . . . . . . . . Max Security . | . . . . . . . . . . . . . . . . . . Peak Influence 842 | 5 70 192 . . 15 40 842 . . . . 50 116 14 . . . Initial 31 | . . . . . . 6 . . . . . 31 16 14 . . . Average 91 | 1 16 62 . . 2 8 494 . . . . 12 28 . . . . Influence Increases 2500 | 40 78 384 . . 36 60 1070 120 . . 110 97 380 5 . 30 90 Destroy 0b10 Robot/C 1180 | . 60 240 . . . 20 440 20 . . 100 60 180 . . . 60 Destroy 0b10 Robot/NC 110 | 40 . . . . 10 . 20 . . . . 15 20 5 . . . Destroy Leader 240 | . 10 50 . . 4 10 100 10 . . 10 22 24 . . . . Allied During Kill 7 | . . . . . . . . . . . . . 7 . . . . Successful Hack 21 | . 8 . . . . . 13 . . . . . . . . . . Disable Machine 150 | . . . . . . . 75 . . . . . 75 . . . . Anti-Garrison Action 200 | . . . . . . . 200 . . . . . . . . . . Destroy Structure 127 | . . 34 . . 7 . 42 . . . . . 44 . . . . Partial Spotted 30 | . . . . . 15 . 15 . . . . . . . . . . Lose Combat Pursuer 435 | . . 60 . . . 30 165 90 . . . . 30 . . 30 30 Influence Decreases 2476 | 40 78 232 152 . 21 75 228 392 149 421 60 112 385 35 . . 96 Entered New Map 1087 | . . . 152 . . 9 . 312 109 421 . 19 19 16 . . 30 Time Decay 1209 | 40 78 202 . . 21 66 228 80 40 . 60 83 276 19 . . 16 Lost Part 120 | . . 30 . . . . . . . . . 10 30 . . . 50 Lost Ally 60 | . . . . . . . . . . . . . 60 . . . . Squads Dispatched 8 | . . . . . . 1 3 . . . . 2 2 . . . . Investigation 1 | . . . . . . . 1 . . . . . . . . . . Extermination 2 | . . . . . . . 1 . . . . 1 . . . . . Reinforcement 5 | . . . . . . 1 1 . . . . 1 2 . . . . Assault . | . . . . . . . . . . . . . . . . . . Garrison . | . . . . . . . . . . . . . . . . . . Intercept . | . . . . . . . . . . . . . . . . . . Searches Triggered . | . . . . . . . . . . . . . . . . . . Construction Impeded 1 | . . . . . . . . . . . . 1 . . . . . Haulers Reinforced . | . . . . . . . . . . . . . . . . . . Active Scanning Responses . | . . . . . . . . . . . . . . . . . . Cargo Convoy Interrupts . | . . . . . . . . . . . . . . . . . . Stealth | -11 -10 -10 -10 -9 -8 -7 -6 -6 -6 -6 -5 -5 -5 -4 -4 -4 -4 --------- Run | Yrd Mat Min Exi Min Mat Fac Fac Low Low Zio Pro Fac Ext Fac Upp Upp War Distress Signals 6 | . . . . . . . . . . . . 2 2 1 . . 1 Communications Jammed . | . . . . . . . . . . . . . . . . . . Distress Signals . | . . . . . . . . . . . . . . . . . . Times Spotted 152 | . 5 16 . . 3 4 35 6 3 . 10 8 19 7 5 8 23 Peak Tracking Total 18 | . 4 3 . . 1 3 6 3 3 . 5 4 4 7 5 9 18 Tactical Retreats 17 | . . 3 . . . 2 5 4 . . . . 1 . . 1 1 Traps | -11 -10 -10 -10 -9 -8 -7 -6 -6 -6 -6 -5 -5 -5 -4 -4 -4 -4 ------- Run | Yrd Mat Min Exi Min Mat Fac Fac Low Low Zio Pro Fac Ext Fac Upp Upp War Traps Triggered 2 | . . . . . . . 1 . . . . 1 . . . . . Indirectly . | . . . . . . . . . . . . . . . . . . Trap Hack Attempts . | . . . . . . . . . . . . . . . . . . Triggered . | . . . . . . . . . . . . . . . . . . Disarmed . | . . . . . . . . . . . . . . . . . . Reprogrammed . | . . . . . . . . . . . . . . . . . . Reused . | . . . . . . . . . . . . . . . . . . Traps Extracted . | . . . . . . . . . . . . . . . . . . Installed . | . . . . . . . . . . . . . . . . . . Triggered . | . . . . . . . . . . . . . . . . . . Machines | -11 -10 -10 -10 -9 -8 -7 -6 -6 -6 -6 -5 -5 -5 -4 -4 -4 -4 ---------- Run | Yrd Mat Min Exi Min Mat Fac Fac Low Low Zio Pro Fac Ext Fac Upp Upp War Machines Disabled 10 | . . . . . . . 5 . . . . . 5 . . . . Max in Single Turn 4 | . . . . . . . 3 . . . . . 4 . . . . Garrison Access 1 | . . . . . . . 1 . . . . . . . . . . Energy Cycler 3 | . . . . . . . . . . . . . 3 . . . . Machines Repaired . | . . . . . . . . . . . . . . . . . . Machines Dismantled . | . . . . . . . . . . . . . . . . . . Machines Sabotaged . | . . . . . . . . . . . . . . . . . . Overloaded Fab Kills . | . . . . . . . . . . . . . . . . . . Hacking | -11 -10 -10 -10 -9 -8 -7 -6 -6 -6 -6 -5 -5 -5 -4 -4 -4 -4 --------- Run | Yrd Mat Min Exi Min Mat Fac Fac Low Low Zio Pro Fac Ext Fac Upp Upp War Machines Accessed 14 | . 1 . 1 . . 2 5 1 . . . . . . . 1 3 Terminals 4 | . 1 . . . . . 3 . . . . . . . . . . Fabricators . | . . . . . . . . . . . . . . . . . . Repair Stations . | . . . . . . . . . . . . . . . . . . Recycling Units . | . . . . . . . . . . . . . . . . . . Scanalyzers 3 | . . . . . . 2 1 . . . . . . . . . . Garrison Access 1 | . . . . . . . 1 . . . . . . . . . . Total Hacks 29 | . 3 . 1 . . 2 17 1 . . . . . . . 1 4 Successful 16 | . 1 . 1 . . 2 6 1 . . . . . . . 1 4 Failed 13 | . 2 . . . . . 11 . . . . . . . . . . Catastrophic 1 | . . . . . . . 1 . . . . . . . . . . Database Lockouts . | . . . . . . . . . . . . . . . . . . Manual 15 | . 3 . 1 . . . 10 . . . . . . . . . 1 Terminals 14 | . 3 . . . . . 11 . . . . . . . . . . Fabricators . | . . . . . . . . . . . . . . . . . . Repair Stations . | . . . . . . . . . . . . . . . . . . Recycling Units . | . . . . . . . . . . . . . . . . . . Scanalyzers 5 | . . . . . . 2 3 . . . . . . . . . . Garrison Access 3 | . . . . . . . 3 . . . . . . . . . . Terminal Hacks 10 | . 1 . 1 . . . 2 1 . . . . . . . 1 4 Record 2 | . . . . . . . . . . . . . . . . . 2 Open Door 4 | . . . . . . . . 1 . . . . . . . 1 2 Branch Access Points 2 | . 1 . . . . . 1 . . . . . . . . . . Alert Level 1 | . . . . . . . 1 . . . . . . . . . . Proto ID Catalog 1 | . . . 1 . . . . . . . . . . . . . . Fabricator Hacks . | . . . . . . . . . . . . . . . . . . Repair Station Hacks . | . . . . . . . . . . . . . . . . . . Recycling Unit Hacks . | . . . . . . . . . . . . . . . . . . Scanalyzer 4 | . . . . . . 2 2 . . . . . . . . . . Retrieve Study 4 | . . . . . . 2 2 . . . . . . . . . . Garrison Access Hacks . | . . . . . . . . . . . . . . . . . . Unauthorized Hacks 2 | . . . . . . . 2 . . . . . . . . . . Terminals 1 | . . . . . . . 1 . . . . . . . . . . Botnet 1 | . . . . . . . 1 . . . . . . . . . . Fabricators . | . . . . . . . . . . . . . . . . . . Repair Stations . | . . . . . . . . . . . . . . . . . . Recycling Units . | . . . . . . . . . . . . . . . . . . Scanalyzers . | . . . . . . . . . . . . . . . . . . Garrison Access 1 | . . . . . . . 1 . . . . . . . . . . Jam 1 | . . . . . . . 1 . . . . . . . . . . Data Cores Recovered . | . . . . . . . . . . . . . . . . . . Used . | . . . . . . . . . . . . . . . . . . Hacking Detections 7 | . 1 . . . . 1 5 . . . . . . . . . . Full Trace Events . | . . . . . . . . . . . . . . . . . . Feedback Events . | . . . . . . . . . . . . . . . . . . Feedback Blocked . | . . . . . . . . . . . . . . . . . . Robot Schematics Acquired . | . . . . . . . . . . . . . . . . . . Robots Built . | . . . . . . . . . . . . . . . . . . Authchips . | . . . . . . . . . . . . . . . . . . Time . | . . . . . . . . . . . . . . . . . . Total Robot Build Rating . | . . . . . . . . . . . . . . . . . . Part Schematics Acquired . | . . . . . . . . . . . . . . . . . . Parts Built . | . . . . . . . . . . . . . . . . . . Authchips . | . . . . . . . . . . . . . . . . . . Time . | . . . . . . . . . . . . . . . . . . Total Part Build Rating . | . . . . . . . . . . . . . . . . . . Part Studies Acquired 4 | . . . . . . 2 2 . . . . . . . . . . Parts Repaired . | . . . . . . . . . . . . . . . . . . Time . | . . . . . . . . . . . . . . . . . . Parts Recycled . | . . . . . . . . . . . . . . . . . . Recycled Matter . | . . . . . . . . . . . . . . . . . . Retrieved Matter . | . . . . . . . . . . . . . . . . . . Retrieved Components . | . . . . . . . . . . . . . . . . . . Parts Scanalyzed . | . . . . . . . . . . . . . . . . . . Part Schematics Acquired . | . . . . . . . . . . . . . . . . . . Parts Damaged . | . . . . . . . . . . . . . . . . . . Bothacking | -11 -10 -10 -10 -9 -8 -7 -6 -6 -6 -6 -5 -5 -5 -4 -4 -4 -4 ------------ Run | Yrd Mat Min Exi Min Mat Fac Fac Low Low Zio Pro Fac Ext Fac Upp Upp War Used RIF Installer . | . . . . . . . . . . . . . . . . . . Robots Hacked . | . . . . . . . . . . . . . . . . . . Non-combat . | . . . . . . . . . . . . . . . . . . Combat . | . . . . . . . . . . . . . . . . . . Robot Hacks Applied . | . . . . . . . . . . . . . . . . . . Relay Couplers Released . | . . . . . . . . . . . . . . . . . . Fabnet Peak Effective % . | . . . . . . . . . . . . . . . . . . Robots Rewired 3 | . . . . . . . . . . . . . 3 . . . . Allies Hacked . | . . . . . . . . . . . . . . . . . . Hacks Repelled . | . . . . . . . . . . . . . . . . . . Allies | -11 -10 -10 -10 -9 -8 -7 -6 -6 -6 -6 -5 -5 -5 -4 -4 -4 -4 -------- Run | Yrd Mat Min Exi Min Mat Fac Fac Low Low Zio Pro Fac Ext Fac Upp Upp War Total Allies 3 | . . . . . . . . . . . . . 3 . . . . Largest Group 2 | . . . . . . . . . . . . . 2 . . . . Highest-Rated Group 61 | . . . . . . . . . . . . . 61 . . . . Highest-Rated Ally 39 | . . . . . . . . . . . . . 39 . . . . Total Orders 4 | . . . . . . . . . . . . 2 . 2 . . . RETURN 4 | . . . . . . . . . . . . 2 . 2 . . . Ally Attacks 14 | . . . . . . . . . . . . . 14 . . . . Total Damage 220 | . . . . . . . . . . . . . 220 . . . . Kills 3 | . . . . . . . . . . . . . 3 . . . . Allies Corrupted . | . . . . . . . . . . . . . . . . . . Allies Melted . | . . . . . . . . . . . . . . . . . . Intel | -11 -10 -10 -10 -9 -8 -7 -6 -6 -6 -6 -5 -5 -5 -4 -4 -4 -4 ------- Run | Yrd Mat Min Exi Min Mat Fac Fac Low Low Zio Pro Fac Ext Fac Upp Upp War Active Infowar (turns) 5266 | 6 361 762 1097 185 96 358 619 89 . . . 324 948 353 . 68 . Optics 384 | . . . . . . 356 28 . . . . . . . . . . Terrain 1673 | 1 . . . . . . 617 89 . . . 306 660 . . . . Seismic 3702 | 5 361 762 1097 185 96 358 366 . . . . . 51 353 . 68 . Decoding 1221 | . . . . . . . . . . . . 324 897 . . . . Cloaking 300 | . . . . . . . . . . . . . 300 . . . . Robot Analysis Total . | . . . . . . . . . . . . . . . . . . Derelict Logs Recovered 8 | . . 2 . 1 . . . . 1 2 . . . . . 2 . Drone Launches 4 | . . . . . . . . . . . . 2 . 2 . . . Drone Recoveries 4 | . . . . . . . . . . . . 2 . 2 . . . Decoded 0b10 Intel 19 | . . . . . . . . . . . . 7 12 . . . . Traps 14 | . . . . . . . . . . . . 5 9 . . . . Emergency Access 2 | . . . . . . . . . . . . . 2 . . . . Exits 3 | . . . . . . . . . . . . 2 1 . . . . Exploration | -11 -10 -10 -10 -9 -8 -7 -6 -6 -6 -6 -5 -5 -5 -4 -4 -4 -4 ------------- Run | Yrd Mat Min Exi Min Mat Fac Fac Low Low Zio Pro Fac Ext Fac Upp Upp War Turns Passed 7115 | 226 361 762 1097 185 96 358 619 160 92 467 181 324 958 408 97 143 581 Spaces Moved 7252 | 124 157 516 450 57 170 680 1017 281 178 924 259 451 484 226 249 298 731 Core 39 | 4 . . . . . . . . . . . . 1 2 . . 32 Treads 12 | 12 . . . . . . . . . . . . . . . . . Legs 1376 | 108 157 516 450 57 . . . . . . . . 88 . . . . Wheels 175 | . . . . . . . . . . . . . . 175 . . . Hover 53 | . . . . . . . . . . . . . . . . . 53 Flight 5597 | . . . . . 170 680 1017 281 178 924 259 451 395 49 249 298 646 Fastest Speed 34 | 50 120 120 190 330 50 50 50 50 50 50 50 50 40 40 37 34 35 Average Speed 79 | 121 120 132 243 330 50 50 50 50 50 50 50 50 159 93 37 37 40 Slowest Speed 680 | 160 120 190 330 330 50 50 50 50 50 50 50 50 680 130 40 275 355 Overloaded Moves . | . . . . . . . . . . . . . . . . . . Propulsion Burnouts . | . . . . . . . . . . . . . . . . . . Robots Hopped 34 | . . . . . . 4 14 . . . . 12 2 . 1 . 1 Potential Cave-ins 8 | . . . . . . . . . . . . . 8 . . . . Cave-ins Triggered . | . . . . . . . . . . . . . . . . . . Exploration Rate (%) 41 | 6 29 96 70 22 17 20 27 46 23 83 47 10 57 9 51 43 85 Regions Visited 17 Branch Regions 11 Pre-discovered Areas 2 | . . . . 1 . . . . . 1 . . . . . . . Known Exits Taken 6 | . 1 . . . . . 1 . . . 1 1 1 1 . . . Unknown Exits Taken 11 | 1 . 1 1 1 1 1 . 1 1 1 . . . . 1 1 . Scrap Searched 13 | . . 2 . 1 . . . . 3 1 2 . . . 1 3 . Spaces Dug 7 | . . . . . . . 1 . . . . . 6 . . . . Terrain Destroyed 120 | . . 39 . . 5 . 47 . . . . 1 28 . . . . Melee . | . . . . . . . . . . . . . . . . . . Projectile 28 | . . . . . 5 . 12 . . . . 1 10 . . . . AOE 91 | . . 39 . . . . 35 . . . . . 17 . . . . Terrain Rammed . | . . . . . . . . . . . . . . . . . . Walls Destroyed . | . . . . . . . . . . . . . . . . . . Machines Disabled . | . . . . . . . . . . . . . . . . . . Actions | -11 -10 -10 -10 -9 -8 -7 -6 -6 -6 -6 -5 -5 -5 -4 -4 -4 -4 --------- Run | Yrd Mat Min Exi Min Mat Fac Fac Low Low Zio Pro Fac Ext Fac Upp Upp War Total 8329 | 160 320 551 456 56 181 693 1121 300 182 929 291 506 589 408 250 327 1009 Wait 695 | . 153 1 . . . 1 33 7 . . 11 28 19 160 . 20 262 Move 7171 | 123 156 515 449 56 169 671 988 280 177 923 258 429 479 226 246 297 729 Hop 31 | . . . . . . 4 14 . . . . 9 2 . 1 . 1 Pick Up 48 | 1 6 2 2 . 3 6 11 3 2 2 1 3 . 5 . 1 . Fast Attach 54 | 10 . . . . . 3 2 . . 1 4 3 6 9 1 6 9 Attach 26 | . . 2 . . 2 1 4 . 1 . . 1 11 1 2 1 . Detach 20 | 3 . . . . 3 1 4 . . 1 . 1 2 1 . 2 2 Swap 14 | . . 2 1 . . 1 2 1 . . . 6 1 . . . . Drop 42 | 2 . 2 4 . . 4 11 3 2 2 1 6 1 1 . . 3 Fire 192 | 21 5 27 . . 4 1 37 6 . . 16 20 55 . . . . Melee 21 | . . . . . . . . . . . . . 13 5 . . 3 Ram . | . . . . . . . . . . . . . . . . . . Kick . | . . . . . . . . . . . . . . . . . . Crush . | . . . . . . . . . . . . . . . . . . Escape Stasis 15 | . . . . . . . 15 . . . . . . . . . . Rewire . | . . . . . . . . . . . . . . . . . . Trap . | . . . . . . . . . . . . . . . . . . Miscellaneous . | . . . . . . . . . . . . . . . . . . Route ------- -11/Scrapyard -10/Materials (discovered 2 exits: *Min x2) -10/Mines (discovered 3 exits: [*Mat x2] / *Exi) -10/Exiles -9/Mines -8/Materials -7/Factory -6/Factory (discovered 3 exits: *Fac / *Low x2) -6/Lower Caves -6/Lower Caves -6/Zion -5/Proximity Caves -5/Factory (discovered 3 exits: Fac / Upp / *Ext) -5/Extension (discovered 3 exits: *Fac x2 / [*Cet]) -4/Factory (discovered 7 exits: *Res x4 / *Upp x2 / Arm) -4/Upper Caves -4/Upper Caves -4/Warlord (discovered 1 exit: [*Pro]) History --------- Turn | Location | Event 13 | -11/Scrapyard | Discovered new exit (range 16) 227 | -11/Scrapyard | Entered Materials 300 | -10/Materials | Build established: Mutant 317 | -10/Materials | Identified exit to Mines 588 | -10/Materials | Entered Mines 616 | -10/Mines | Found a hidden stash of uninstalled traps 808 | -10/Mines | Discovered new exit (range 3) 848 | -10/Mines | Learned Materials emergency access door positions 916 | -10/Mines | Discovered new exit (range 11) 1167 | -10/Mines | Core integrity fell below 50% 1340 | -10/Mines | Deemed a non-threat by the Exiles lab entrance 1342 | -10/Mines | Discovered new exit (range 5) 1350 | -10/Mines | Entered Exiles 1396 | -10/Exiles | Met 8R-AWN 1428 | -10/Exiles | Met EX-HEX 1482 | -10/Exiles | Met EX-BIN 1504 | -10/Exiles | Aligned with FarCom system 1506 | -10/Exiles | Given EX-Vault access code 1567 | -10/Exiles | Opened EX-Vault 1582 | -10/Exiles | Found Flying Fortress v7 1634 | -10/Exiles | Warned to stay clear of 0b10 Research branches 1695 | -10/Exiles | Met EX-DEC 2122 | -10/Exiles | Found XL Autogun Array 2397 | -10/Exiles | Discovered new exit (range 14) 2447 | -10/Exiles | Stole two prototypes: Flying Fortress v7, XL Autogun Array 2447 | -10/Exiles | Entered Mines 2448 | -9/Mines | Learned location of Storage (-9) 2479 | -9/Mines | Met a Derelict bent on vengeance 2583 | -9/Mines | Learned Materials terminal intel 2616 | -9/Mines | Discovered new exit (range 6) 2632 | -9/Mines | Entered Materials 2632 | -8/Materials | Evolved 4 slots: Propulsion x2, Weapon x2 2634 | -8/Materials | Loaded intel: 12 terminal locations 2725 | -8/Materials | Discovered new exit (range 4) 2728 | -8/Materials | Entered Factory 2728 | -7/Factory | Evolved 2 slots: Utility x2 2730 | -7/Factory | FarCom data flow suspended 3015 | -7/Factory | Build established: Gunner 3080 | -7/Factory | Discovered new exit (range 9) 3086 | -7/Factory | Entered another Factory area 3086 | -6/Factory | Evolved 2 slots: Utility x2 3283 | -6/Factory | Spotted B-75 Beast 3414 | -6/Factory | Build established: Skirmisher 3517 | -6/Factory | Discovered new exit (range 12) 3550 | -6/Factory | Identified exit to Lower Caves 3705 | -6/Factory | Entered Lower Caves 3815 | -6/Lower Caves | Encountered a Warlord checkpoint 3838 | -6/Lower Caves | Discovered new exit (range 15) 3865 | -6/Lower Caves | Entered another Lower Caves area 3943 | -6/Lower Caves | Discovered new exit (range 15) 3946 | -6/Lower Caves | Encountered a Master Thief 3946 | -6/Lower Caves | Encountered a Master Thief 3946 | -6/Lower Caves | Encountered a Master Thief 3946 | -6/Lower Caves | Learned location of 1 exit from Proximity Caves 3957 | -6/Lower Caves | Entered Zion 3968 | -6/Zion | Given the Hacking Drone Bay 3969 | -6/Zion | Found Prototype Device 3969 | -6/Zion | Identified Hacking Drone Bay 4042 | -6/Zion | Discovered new exit (range 9) 4066 | -6/Zion | Build established: Gunner 4076 | -6/Zion | Learned 8 Factory zone layouts 4098 | -6/Zion | Learned Factory emergency access door positions 4136 | -6/Zion | Given A8's code to call for help 4152 | -6/Zion | Found CR-A16's Pointy Stick 4297 | -6/Zion | Found GAL Module 4424 | -6/Zion | Entered Proximity Caves 4425 | -5/Proximity Caves | Identified exit to Factory 4605 | -5/Proximity Caves | Entered Factory 4605 | -5/Factory | Evolved 2 slots: Power x1, Utility x1 4606 | -5/Factory | Identified exit to Upper Caves 4694 | -5/Factory | Identified exit to Factory 4780 | -5/Factory | Identified exit to Extension 4901 | -5/Factory | Build established: Skirmisher 4929 | -5/Factory | Entered Extension 4952 | -5/Extension | Energy Cycler disabled 4952 | -5/Extension | Rescued a captive Derelict 4956 | -5/Extension | Rescued a captive Derelict 4956 | -5/Extension | Rescued a captive Derelict 4958 | -5/Extension | Rescued a captive Derelict 4966 | -5/Extension | Rescued a captive Derelict 5019 | -5/Extension | Lost 3 allies 5499 | -5/Extension | Lost 7 parts (1p2u4w) 5657 | -5/Extension | Spotted B-75 Beast 5733 | -5/Extension | Lost 5 parts (2p1n1u1w) 5786 | -5/Extension | Core integrity fell below 50% 5830 | -5/Extension | Core integrity fell below 20% 5843 | -5/Extension | Extracted ID and sensor layout for unrecognized location from A7's data core 5879 | -5/Extension | Discovered new exit (range 16) 5880 | -5/Extension | Discovered exit to Factory (range 15) 5881 | -5/Extension | Lost 9 parts (2n5u2w) 5887 | -5/Extension | Entered Factory 5887 | -4/Factory | Evolved 2 slots: Propulsion x2 6020 | -4/Factory | Build established: Mutant 6030 | -4/Factory | Identified exit to Upper Caves 6030 | -4/Factory | Identified exit to Armory 6031 | -4/Factory | Identified exit to Research 6295 | -4/Factory | Entered Upper Caves 6325 | -4/Upper Caves | Lost 11 parts (3n4u4w) 6388 | -4/Upper Caves | Discovered new exit (range 12) 6392 | -4/Upper Caves | Entered another Upper Caves area 6440 | -4/Upper Caves | Learned Research stockpile data 6503 | -4/Upper Caves | Attracted the attention of an 0b10 checkpoint 6513 | -4/Upper Caves | Core integrity fell below 50% 6525 | -4/Upper Caves | Learned Research security intel 6531 | -4/Upper Caves | Discovered new exit (range 15) 6534 | -4/Upper Caves | Encountered a Master Thief 6534 | -4/Upper Caves | Encountered a Master Thief 6535 | -4/Upper Caves | Entered Warlord 6546 | -4/Warlord | Lost 3 parts (1p1n1u) 6548 | -4/Warlord | System corruption cleaned by Quarantine Array 6659 | -4/Warlord | Visited the Vortex Lab 6664 | -4/Warlord | Found Prototype Energy Cannon 6664 | -4/Warlord | Identified Vortex Driver 6677 | -4/Warlord | Found Prototype Energy Gun 6677 | -4/Warlord | Identified Vortex Shotgun 6680 | -4/Warlord | Warlord's base attacked by MAIN.C 6682 | -4/Warlord | Found Vortex Shotgun 6699 | -4/Warlord | Met Warlord 6964 | -4/Warlord | Opened side exit 7030 | -4/Warlord | Warlord forces counterattacked 7077 | -4/Warlord | Spotted Executioner 7079 | -4/Warlord | Destroyed Executioner 7091 | -4/Warlord | Spotted Striker 7107 | -4/Warlord | Spotted Executioner 7109 | -4/Warlord | Core integrity fell below 20% 7116 | -4/Warlord | Discovered new exit (range 9) 7116 | -4/Warlord | Destroyed by S-27 Virus with Autogun Last Messages --------------- 07095_ Backup Propulsion III disintegrated. 07095_ E-15 Imp destroyed. 07097_ Backup Power III blown off. 07097_ Backup Power III disintegrated. 07097_ Authchip [R/Combat] blown off. 07097_ E-15 Imp destroyed. 07100_ Targeting Computer destroyed. 07100_ Imp. Armor Integrity Analyzer blown off. 07100_ Imp. Target Analyzer blown off. 07100_ Target Analyzer blown off. 07100_ E-15 Imp destroyed. 07102_ Acquired Cesium-ion Thruster. 07104_ Cesium-ion Thruster blown off. 07104_ E-15 Imp destroyed. 07106_ Acquired Cesium-ion Thruster. 07107_ Cesium-ion Thruster destroyed. 07107_ E-15 Imp destroyed. 07111_ Penetrated by Slug. 07111_ Slug penetrates Wall. 07116_ EXIT=FOUND Map ----- +----------------------------------------------------+ | | | | | ????????????????????????????????? | | ????????????????????????????????? | | ????????????????????????????????? | | ????????????????????????????????? | | ????????????????????????????????? | | ????????????????????????????????? | | ????????????????????????????????? | | ????????????????????????????????? | | ????????????????????????????????? | | ????????????????????????????????? | | ????????????????????????????????? | | ????????????????????????????????? | | ?????????????????????#######????? | | ?????????????????????#;; #????? | | ?????????????????????#; ????? | | ????????????????????##